fUSD/lending_fUSD_20240201
["ID","MTS","AMOUNT","RATE_DAILY","PERIOD"]
[313132017,1706793040778,-150.0,0.00028219,2]
[313132018,1706793040789,-150.0,0.00028219,2]
[313132019,1706793040799,-420.25,0.00028219,2]
[313132020,1706793040809,-420.25,0.00028219,2]
[313132021,1706793040818,-420.25,0.00028219,2]
[313132022,1706793040827,-420.25,0.00028219,2]
[313132023,1706793040836,-420.25,0.00028219,2]
[313132024,1706793040845,-420.25,0.00028219,2]
[313132025,1706793040854,-420.25,0.00028219,2]
[313132026,1706793040862,-420.25,0.00028219,2]
[313132027,1706793040872,-420.25,0.00028219,2]
[313132028,1706793040881,-415.05,0.00028219,2]
[313132029,1706793040890,-216.46,0.00028749,2]
[313132030,1706793040899,-415.7,0.00028777,2]
[313132031,1706793040908,-170.01533239,0.0002878,2]
[313132032,1706793040917,-171364.34563253,0.0002888,2]
[313132033,1706793040926,-18774.599973,0.000289,2]
[313132034,1706793040936,-200.0,0.00028914,3]
[313132035,1706793040944,-800.0,0.00028914,2]
[313132036,1706793040954,-450.0,0.00029,3]
[313132037,1706793040963,-154.35922151,0.00029229,2]
[313132038,1706793040973,-208.0,0.00029277,8]
[313132039,1706793040982,-239.377,0.00029297,2]
[313132040,1706793040991,-211.042,0.00029297,2]
[313132041,1706793041000,-1399.442,0.00029406,2]
[313132042,1706793041009,-2482.868,0.00029406,2]
[313132043,1706793041018,-393.072,0.00029406,2]
[313132044,1706793041027,-1405.868,0.00029406,2]
[313132045,1706793041037,-1866.491,0.00029406,2]
[313132046,1706793041047,-843.0,0.00029406,2]
[313132047,1706793041056,-953.484,0.00029406,2]
[313132048,1706793041066,-459.563,0.00029406,2]
[313132049,1706793041075,-1250.0,0.00029406,2]
[313132050,1706793041084,-1233.0,0.00029406,2]
[313132051,1706793041094,-530.0,0.00029406,2]
[313132052,1706793041103,-233.367,0.00029406,2]
[313132053,1706793041113,-705.0,0.00029406,2]
[313132054,1706793041122,-596.0,0.00029406,2]
[313132055,1706793041131,-1000.0,0.00029406,2]
[313132056,1706793041140,-450.661,0.00029406,2]
[313132057,1706793041150,-236.0,0.00029406,2]
[313132058,1706793041159,-1941.0,0.00029406,2]
[313132059,1706793041168,-151.021,0.00029406,2]
[313132060,1706793041177,-320.0,0.00029406,2]
[313132061,1706793041186,-982.099,0.00029406,2]
[313132062,1706793041196,-1138.0,0.00029406,2]
[313132063,1706793041205,-7436.339,0.00029406,2]
[313132064,1706793041215,-8169.866,0.00029406,2]
[313132065,1706793041224,-19842.306,0.00029406,2]
[313132066,1706793041234,-5664.969,0.00029406,2]
[313132067,1706793041243,-2912.0,0.00029406,2]
[313132068,1706793041252,-2294.394,0.00029406,2]
[313132069,1706793041261,-4205.767,0.00029406,2]
[313132070,1706793041271,-1032.0,0.00029406,2]
[313132071,1706793041280,-290.40617084,0.000295,2]
[313132072,1706793041290,-216.46,0.00029668,2]
[313132073,1706793041301,-176.02968704,0.000298,2]
[313132074,1706793041311,-283.55,0.00029837,2]
[313132075,1706793041320,-316.63728519,0.000299,2]
[313132076,1706793041330,-1901.28497533,0.00029989,4]
[313132077,1706793041338,-203.8884732,0.0003,4]
[313132078,1706793041347,-155.267871,0.0003,4]
[313132079,1706793041357,-451.91910695,0.0003,2]
[313132080,1706793041366,-1639.91302171,0.0003,4]
[313132081,1706793041375,-155.0,0.0003,2]
[313132082,1706793041384,-3305.0,0.0003,2]
[313132083,1706793041393,-155.84374487,0.0003,4]
[313132084,1706793041402,-500.0,0.0003,2]
[313132085,1706793041412,-1000.0,0.0003,2]
[313132086,1706793041421,-163.69,0.00030025,2]
[313132087,1706793041430,-344.80968005,0.00030134,2]
[313132088,1706793041439,-150.0,0.00030136,2]
[313132089,1706793041448,-244.00662641,0.00030136,2]
[313132090,1706793041457,-838223.41,0.00030137,2]
[313132091,1706793041466,-153.87,0.00030137,2]
[313132092,1706793041475,-415.7,0.00030421,2]
[313132093,1706793041484,-403.35,0.00030548,2]
[313132094,1706793041493,-216.46,0.00030587,2]
[313132095,1706793041502,-150.0,0.00030644,2]
[313132096,1706793041511,-150.0,0.00030652,2]
[313132097,1706793041520,-150.0,0.00030656,2]
[313132098,1706793041529,-150.0,0.00030663,2]
[313132099,1706793041538,-150.0,0.00030674,2]
[313132100,1706793041548,-150.0,0.00030675,2]
[313132101,1706793041557,-5198.70632642,0.00030683,2]
[313132102,1706793041566,-150.0,0.00030688,2]
[313132103,1706793041575,-150.0,0.00030699,2]
[313132104,1706793041584,-150.0,0.00030713,2]
[313132105,1706793041593,-150.0,0.00030718,2]
[313132106,1706793041602,-150.0,0.00030727,2]
[313132107,1706793041611,-1000.0,0.00030745,2]
[313132108,1706793041620,-1000.0,0.00030745,2]
[313132109,1706793041629,-1000.0,0.00030745,2]
[313132110,1706793041638,-1000.0,0.00030745,2]
[313132112,1706793041647,-1000.0,0.00030745,2]
[313132114,1706793041656,-1000.0,0.00030745,2]
[313132116,1706793041665,-1000.0,0.00030745,2]
[313132118,1706793041674,-1000.0,0.00030745,2]
[313132120,1706793041683,-180.3842,0.00030745,2]
[313132121,1706793041692,-150.0,0.00030767,2]
[313132124,1706793041704,-716.45,0.00030767,2]
[313132125,1706793041715,-150.0,0.00030769,2]
[313132128,1706793041725,-150.0,0.00030778,2]
[313132130,1706793041734,-150.0,0.00030783,2]
[313132132,1706793041744,-150.0,0.00030788,2]
[313132133,1706793041753,-150.0,0.0003079,2]
[313132149,1706793041930,-157.09803962,0.00030798,2]
[313132150,1706793041940,-154.35922151,0.00030811,2]
[313132151,1706793041949,-150.0,0.00030819,2]
[313132152,1706793041959,-218.93455327,0.00030836,2]
[313132153,1706793041968,-150.0,0.0003084,2]
[313132154,1706793041977,-150.0,0.00030856,2]
[313132155,1706793041987,-150.0,0.00030862,2]
[313132156,1706793041996,-150.0,0.00030866,2]
[313132157,1706793042005,-150.0,0.00030866,2]
[313132158,1706793042014,-150.0,0.0003087,2]
[313132159,1706793042023,-150.0,0.00030874,2]
[313132160,1706793042033,-150.0,0.00030877,2]
[313132161,1706793042042,-150.0,0.00030885,2]
[313132162,1706793042052,-150.0,0.00030893,2]
[313132163,1706793042061,-44274.4209463,0.00030895,2]
[313132164,1706793042071,-150.0,0.00030897,2]
[313132165,1706793042080,-344.80968005,0.00030897,2]
[313132166,1706793042090,-195.67489377,0.00030898,4]
[313132167,1706793042100,-150.01,0.00030899,2]
[313132168,1706793042110,-3306.75797983,0.00030899,2]
[313132169,1706793042119,-500.0,0.000309,2]
[313132170,1706793042128,-3000.0,0.000309,2]
[313132171,1706793042138,-181323.82866788,0.000309,2]
[313132172,1706793042148,-4719.818665,0.0003091,2]
[313132173,1706793042158,-421.3093479,0.00030916,2]
[313132174,1706793042167,-3042.9982476,0.00030937,2]
[313132175,1706793042177,-3136.1146964,0.00030937,2]
[313132176,1706793042186,-460.8600246,0.00030958,2]
[313132177,1706793042195,-158.01733681,0.00031,2]
[313132178,1706793042205,-300.0,0.00031,2]
[313132179,1706793042214,-170.01533237,0.00031149,2]
[313132180,1706793042223,-1000.0,0.00031232,7]
[313132181,1706793042233,-3430.78962876,0.0003125,5]
[313132182,1706793042242,-5633.68676721,0.0003125,2]
[313132183,1706793042251,-5859.40530738,0.0003125,4]
[313132184,1706793042260,-163.52578042,0.0003125,2]
[313132185,1706793042270,-50000.0,0.00031295,7]
[313132186,1706793042279,-50000.0,0.00031295,7]
[313132187,1706793042288,-150.0,0.000314,2]
[313132188,1706793042298,-216.46,0.00031506,2]
[313132189,1706793042307,-421.3093479,0.00031558,2]
[313132190,1706793042316,-152.38258003,0.00031562,2]
[313132191,1706793042326,-152.60302258,0.00031562,2]
[313132192,1706793042335,-50000.0,0.0003158,7]
[313132193,1706793042344,-500.0,0.00031631,2]
[313132194,1706793042353,-180.0,0.00031644,2]
[313132195,1706793042362,-2506.2547285,0.00031656,2]
[313132196,1706793042371,-2582.9467016,0.00031656,2]
[313132197,1706793042380,-36562.2637106,0.00031656,2]
[313132198,1706793042389,-150.0,0.00031699,2]
[313132199,1706793042398,-23898.84,0.000317,2]
[313132200,1706793042407,-1901.28497533,0.00031761,5]
[313132201,1706793042416,-28850.106475,0.00031778,2]
[313132202,1706793042425,-230811.72738,0.000318,3]
[313132203,1706793042434,-815.038764,0.000319,2]
[313132204,1706793042443,-1000.0,0.00031959,4]
[313132205,1706793042452,-723.0,0.00031959,4]
[313132206,1706793042461,-300.0,0.00032,2]
[313132207,1706793042470,-415.7,0.00032065,2]
[313132208,1706793042480,-153.87,0.00032329,2]
[313132209,1706793042489,-154.35922151,0.00032394,2]
[313132210,1706793042498,-1048.69284354,0.000324,2]
[313132211,1706793042507,-1048.69284346,0.000324,2]
[313132212,1706793042516,-1048.69284346,0.000324,2]
[313132213,1706793042525,-1048.69284346,0.000324,2]
[313132214,1706793042534,-1048.69284346,0.000324,2]
[313132215,1706793042544,-1048.69284346,0.000324,2]
[313132216,1706793042553,-1048.69284346,0.000324,2]
[313132217,1706793042562,-1048.69284346,0.000324,2]
[313132218,1706793042571,-1048.69284346,0.000324,2]
[313132219,1706793042580,-1048.69284346,0.000324,2]
[313132220,1706793042589,-1048.69284346,0.000324,2]
[313132221,1706793042598,-1048.69284346,0.000324,2]
[313132222,1706793042607,-1048.69284346,0.000324,2]
[313132223,1706793042616,-1048.69284346,0.000324,2]
[313132224,1706793042625,-1048.69284346,0.000324,2]
[313132225,1706793042634,-1048.69284346,0.000324,2]
[313132226,1706793042643,-1048.69284346,0.000324,2]
[313132227,1706793042653,-1048.69284346,0.000324,2]
[313132228,1706793042662,-1048.69284346,0.000324,2]
[313132229,1706793042671,-1048.69284346,0.000324,2]
[313132230,1706793042681,-1363.0,0.00032406,2]
[313132231,1706793042690,-2432.0,0.00032406,2]
[313132232,1706793042699,-1861.0,0.00032406,2]
[313132233,1706793042711,-949.0,0.00032406,2]
[313132234,1706793042720,-1250.0,0.00032406,2]
[313132235,1706793042743,-318.628,0.00032406,2]
[313132236,1706793042753,-215.0,0.00032406,2]
[313132237,1706793042763,-286.81,0.00032406,2]
[313132238,1706793042772,-371.055,0.00032406,2]
[313132240,1706793042784,-998.0,0.00032406,2]
[313132242,1706793042795,-427.0,0.00032406,2]
[313132244,1706793042805,-236.0,0.00032406,2]
[313132246,1706793042814,-1647.903,0.00032406,2]
[313132248,1706793042823,-150.0,0.00032406,2]
[313132249,1706793042833,-320.0,0.00032406,2]
[313132251,1706793042842,-744.471,0.00032406,2]
[313132252,1706793042852,-19773.0,0.00032406,2]
[313132254,1706793042861,-5602.0,0.00032406,2]
[313132256,1706793042870,-4192.0,0.00032406,2]
[313132257,1706793042880,-945.11,0.00032466,2]
[313132258,1706793042889,-945.11,0.00032466,2]
[313132259,1706793042897,-202.62691188,0.000325,2]
[313132260,1706793042906,-1000.0,0.00032581,4]
[313132261,1706793042915,-156.45158618,0.00032764,4]
[313132262,1706793042924,-12983.50449462,0.000328,2]
[313132263,1706793042933,-421.3093479,0.00032808,2]
[313132264,1706793042942,-283.55,0.00032821,2]
[313132265,1706793042952,-1000.0,0.00032855,4]
[313132266,1706793042962,-1000.0,0.00032876,7]
[313132267,1706793042971,-1000.0,0.00032876,7]
[313132268,1706793042981,-412.52673517,0.00032876,5]
[313132269,1706793042991,-1000.0,0.00032876,7]
[313132270,1706793043000,-520.62633676,0.00032876,5]
[313132271,1706793043010,-257.35399337,0.00032876,6]
[313132272,1706793043020,-252.39806903,0.00032876,6]
[313132273,1706793043030,-318.87438939,0.00032876,6]
[313132274,1706793043040,-264.24839015,0.00032876,3]
[313132275,1706793043050,-1000.0,0.00032876,7]
[313132276,1706793043060,-277.27698709,0.00032876,3]
[313132277,1706793043070,-1000.0,0.00032876,7]
[313132278,1706793043080,-180.21357182,0.00032876,5]
[313132279,1706793043090,-254.5053393,0.00032876,5]
[313132280,1706793043100,-1000.0,0.00032876,7]
[313132281,1706793043109,-1000.0,0.00032876,7]
[313132282,1706793043119,-237.66574922,0.00032876,5]
[313132283,1706793043128,-185.63703083,0.00032876,5]
[313132284,1706793043138,-192.10919405,0.00032876,5]
[313132285,1706793043148,-250.82951343,0.00032876,5]
[313132286,1706793043158,-1969.5112093,0.00032877,2]
[313132287,1706793043168,-2029.7787069,0.00032877,2]
[313132288,1706793043178,-750.0,0.000329,2]
[313132289,1706793043188,-1000.0,0.000329,2]
[313132290,1706793043197,-2000.0,0.000329,2]
[313132291,1706793043207,-359.0,0.000329,2]
[313132292,1706793043216,-475.0,0.000329,2]
[313132293,1706793043226,-500.0,0.000329,2]
[313132294,1706793043236,-1000.0,0.000329,2]
[313132295,1706793043245,-200.0,0.000329,2]
[313132296,1706793043255,-250.0,0.000329,2]
[313132297,1706793043264,-562.73398796,0.000329,2]
[313132298,1706793043274,-21137.9492394,0.00032977,2]
[313132299,1706793043284,-1000.0,0.00033,33]
[313132300,1706793043293,-18867.88977688,0.00033,2]
[313132301,1706793043304,-5297.12496702,0.00033,2]
[313132302,1706793043314,-102410.0,0.00033,2]
[313132303,1706793043324,-205.0,0.0003309,2]
[313132304,1706793043334,-210.0,0.0003309,2]
[313132305,1706793043344,-208.0,0.00033117,14]
[313132306,1706793043354,-1000.0,0.00033151,120]
[313132307,1706793043364,-193.65368794,0.00033177,2]
[313132308,1706793043374,-445.64033441,0.00033177,2]
[313132309,1706793043384,-2248.90149216,0.00033177,2]
[313132310,1706793043394,-1432.7676901,0.00033254,2]
[313132312,1706793043403,-1476.6107121,0.00033254,2]
[313132313,1706793043412,-421.3093479,0.00033254,2]
[313132314,1706793043422,-53481.54503233,0.00033277,10]
[313132315,1706793043432,-33424.60726917,0.00033277,10]
[313132316,1706793043441,-23420.63223536,0.00033277,10]
[313132335,1706793043938,-165.61,0.00023525,2]
[313132336,1706793043947,-87.2426,0.00033277,10]
[313132337,1706793044034,-165.61,0.00025789,2]
[313132338,1706793044044,-165.61,0.00028053,2]
[313132339,1706793044053,-165.61,0.00030317,2]
[313132340,1706793044063,-165.61,0.0003258,2]
[313132341,1706793044072,-98.59873948,0.00033277,10]
[313132342,1706793044097,-7895.89434,0.00033277,10]
[313132343,1706793044115,-2457.09624937,0.00033277,10]
[313132344,1706793044127,-1771.22584061,0.00033277,10]
[313132345,1706793044139,-1321.86465,0.00033277,10]
[313132346,1706793044199,-634.35164984,0.00033277,10]
[313132347,1706793044211,-455.39861255,0.00033277,10]
[313132348,1706793044224,-6994.31871114,0.00033277,10]
[313132349,1706793044236,-1118.38400007,0.00033277,10]
[313132350,1706793044248,-1679.045025,0.00033277,10]
[313132352,1706793046262,-1247.199999,0.0002267,2]
[313132353,1706793046274,-794.738301,0.0002267,2]
[313132354,1706793046283,-1051.10965651,0.00030899,4]
[313132355,1706793046292,-625.0,0.000309,5]
[313132356,1706793046302,-2832.17957577,0.00033277,10]
[313132357,1706793046311,-17369.03766662,0.00033277,10]
[313132358,1706793046330,-150.0,0.00031148,2]
[313132359,1706793046339,-1146.00160775,0.00031149,2]
[313132360,1706793046365,-40.71539742,0.00031149,2]
[313132361,1706793046374,-602.39838594,0.00033277,10]
[313132362,1706793046387,-3938.65998862,0.00033277,10]
[313132363,1706793046400,-6303.76560824,0.00033277,10]
[313132364,1706793046409,-29041.38632755,0.00033277,10]
[313132365,1706793046418,-2002.19888372,0.000333,4]
[313132366,1706793046428,-1000.0,0.000334,2]
[313132367,1706793046436,-344.80968005,0.00033422,2]
[313132368,1706793046446,-945.11,0.00033425,2]
[313132369,1706793046455,-815.7,0.00033425,2]
[313132370,1706793046464,-202.71165764,0.00033425,2]
[313132371,1706793046476,-326.68834236,0.00033425,2]
[313132372,1706793046485,-798.69865764,0.00033511,2]
[313132373,1706793046500,-5600.4915964,0.00033511,2]
[313132378,1706793833086,-984.709,0.00022899,2]
[313132379,1706793833108,-22.5105,0.00022899,2]
[313132380,1706793905711,-1007.2195,0.00022899,2]
[313132381,1706794113863,208.0,0.00022437,2]
[313132390,1706794232238,-707.52766815,0.00022899,2]
[313132391,1706794232301,-438.2895,0.00022899,2]
[313132392,1706794232315,-3502.16063185,0.00022899,2]
[313132393,1706794232324,-1848.8027,0.00022899,2]
[313132394,1706794232334,-500.0,0.00022899,2]
[313132395,1706794232344,-1996.0,0.00022899,2]
[313132396,1706794232353,-215.22213038,0.00022998,2]
[313132397,1706794232362,-208.0,0.00027132,9]
[313132398,1706794232372,-1000.0,0.000274,2]
[313132399,1706794232383,-1000.0,0.000274,2]
[313132400,1706794232393,-1000.0,0.000274,2]
[313132401,1706794232402,-1000.0,0.000274,2]
[313132402,1706794232412,-1000.0,0.000274,2]
[313132403,1706794232421,-739.79481959,0.000274,2]
[313132404,1706794232433,-260.20518041,0.000274,2]
[313132405,1706794232442,-130.33781959,0.000274,2]
[313132406,1706794232455,-869.66218041,0.000274,2]
[313132407,1706794232464,-1000.0,0.000274,2]
[313132408,1706794232473,-1000.0,0.000274,2]
[313132409,1706794232482,-1000.0,0.000274,2]
[313132410,1706794232491,-1000.0,0.000274,2]
[313132411,1706794232500,-1000.0,0.000274,2]
[313132412,1706794232509,-1000.0,0.000274,2]
[313132413,1706794232518,-1000.0,0.000274,2]
[313132414,1706794232527,-1000.0,0.000274,2]
[313132415,1706794232537,-1000.0,0.000274,2]
[313132416,1706794232546,-1000.0,0.000274,2]
[313132417,1706794232557,-1000.0,0.000274,2]
[313132418,1706794232566,-199.79949182,0.000274,2]
[313132419,1706794232578,-571.30269636,0.000274,2]
[313132420,1706794232593,-228.89781182,0.000274,2]
[313132421,1706794232602,-221.10218818,0.000274,2]
[313132422,1706794232621,-778.89781182,0.000274,2]
[313132423,1706794232630,-789.0,0.000274,2]
[313132424,1706794232639,-789.56655638,0.000274,2]
[313132425,1706794232647,-155.3,0.00028924,2]
[313132426,1706794232656,-290.40617084,0.000295,2]
[313132427,1706794232666,-430.878,0.00029767,2]
[313132428,1706794232675,-215.0,0.00029767,2]
[313132429,1706794232684,-236.0,0.00029767,2]
[313132430,1706794232692,-427.0,0.00029767,2]
[313132431,1706794232701,-150.0,0.00029767,2]
[313132432,1706794232710,-318.781,0.00029767,2]
[313132433,1706794232719,-1363.0,0.00029767,2]
[313132434,1706794232728,-2432.0,0.00029767,2]
[313132435,1706794232737,-5602.0,0.00029767,2]
[313132436,1706794232746,-19773.0,0.00029767,2]
[313132437,1706794232755,-949.0,0.00029767,2]
[313132438,1706794232764,-4192.0,0.00029767,2]
[313132439,1706794232773,-1861.0,0.00029767,2]
[313132440,1706794232782,-4824.28453479,0.0003,4]
[313132441,1706794232792,-1860.52,0.0003,2]
[313132442,1706794232800,-155.0,0.00030714,2]
[313132443,1706794232811,-2020.0,0.00030715,2]
[313132444,1706794232820,-222.56,0.00030722,2]
[313132445,1706794232829,-150.0,0.00030768,2]
[313132446,1706794232838,-250.0,0.00030772,2]
[313132447,1706794232847,-6070.1,0.00030799,20]
[313132448,1706794232857,-2000.0,0.000308,2]
[313132449,1706794232866,-250.0,0.0003082,2]
[313132450,1706794232875,-166.93,0.00030823,2]
[313132451,1706794232885,-150.0,0.00030882,2]
[313132452,1706794232894,-499.99,0.00030899,2]
[313132453,1706794232903,-2487.43,0.00030899,2]
[313132454,1706794232912,-150.0,0.000309,2]
[313132455,1706794232921,-200.0,0.00030905,2]
[313132456,1706794232930,-159.07,0.00031164,2]
[313132457,1706794232939,-482.732,0.00031184,2]
[313132458,1706794232949,-155.3,0.00031188,2]
[313132459,1706794232957,-1327.94,0.0003123,2]
[313132460,1706794232967,-50000.0,0.00031284,7]
[313132461,1706794232976,-500.0,0.000313,2]
[313132462,1706794232985,-252.47,0.000314,2]
[313132463,1706794232995,-208.0,0.00031828,16]
[313132464,1706794233005,-152.60302258,0.00031835,2]
[313132465,1706794233014,-1000.0,0.000319,2]
[313132466,1706794233024,-500.0,0.00031948,2]
[313132467,1706794233033,-200.0,0.00031948,3]
[313132468,1706794233043,-200.0,0.00031948,2]
[313132469,1706794233053,-1000.0,0.00031959,4]
[313132470,1706794233066,-359.0,0.000321,2]
[313132471,1706794233075,-500.0,0.000321,2]
[313132472,1706794233090,-1000.0,0.00032178,2]
[313132473,1706794233099,-500.0,0.00032214,2]
[313132474,1706794233107,-1000.0,0.00032233,4]
[313132475,1706794233117,-1000.0,0.000323,7]
[313132476,1706794233127,-1000.0,0.000323,7]
[313132477,1706794233136,-1000.0,0.000323,7]
[313132478,1706794233145,-1000.0,0.000323,7]
[313132479,1706794233155,-1287.0,0.000323,7]
[313132480,1706794233164,-1134.0,0.000323,7]
[313132481,1706794233174,-222.56,0.00032366,2]
[313132482,1706794233182,-201.58686684,0.000325,2]
[313132483,1706794233191,-1000.0,0.00032507,4]
[313132484,1706794233200,-723.0,0.00032507,4]
[313132485,1706794233209,-500.0,0.00032595,2]
[313132486,1706794233218,-1048.69284354,0.000326,2]
[313132487,1706794233227,-1048.69284346,0.00032721,2]
[313132488,1706794233236,-1437.64657995,0.00032731,6]
[313132489,1706794233245,-427.0,0.00032767,2]
[313132490,1706794233254,-150.0,0.00032767,2]
[313132491,1706794233263,-159.07,0.00032788,2]
[313132492,1706794233273,-2707.04820034,0.00032791,7]
[313132493,1706794233286,-433.425,0.00032791,7]
[313132494,1706794233297,-3697.07971781,0.00032791,7]
[313132495,1706794238247,-317.13206227,0.00032791,7]
[313132496,1706794238313,-2936.09954424,0.00032791,7]
[313132497,1706794238325,-358.33485164,0.00032791,7]
[313132498,1706794238336,-61638.41665794,0.00032791,7]
[313132499,1706794238345,-30891.60641006,0.00032791,7]
[313132500,1706794238354,-17958.333199,0.00032791,7]
[313132501,1706794238533,-3912.78173796,0.00032791,7]
[313132502,1706794238545,-1368.34404462,0.00032791,7]
[313132503,1706794238556,-6439.60590691,0.00032791,7]
[313132504,1706794238569,-7580.61022949,0.00032791,7]
[313132505,1706794238591,-12740.32488202,0.00032791,7]
[313132506,1706794238600,-11233.50522957,0.00032791,7]
[313132507,1706794238609,-14908.12419188,0.00032791,7]
[313132508,1706794238618,-2878.60430972,0.00032831,4]
[313132509,1706794238627,-5757.20861944,0.00032831,4]
[313132510,1706794238636,-1003.21777715,0.00032841,3]
[313132511,1706794238646,-1123.32837639,0.00032841,3]
[313132512,1706794238655,-242.50365988,0.00032841,5]
[313132513,1706794238664,-333.13481655,0.00032841,5]
[313132514,1706794238673,-5421.04442537,0.00032841,6]
[313132515,1706794238682,-1432.59211741,0.00032841,5]
[313132516,1706794238691,-507.394327,0.00032841,3]
[313132517,1706794238701,-254.06084261,0.00032841,5]
[313132518,1706794238710,-250.68943469,0.00032841,5]
[313132519,1706794238720,-192.1422712,0.00032841,5]
[313132520,1706794238729,-172.89827465,0.00032841,5]
[313132521,1706794238738,-1048.69284346,0.00032842,2]
[313132522,1706794238747,-750.0,0.000329,2]
[313132523,1706794238756,-1048.69284346,0.00032963,2]
[313132525,1706794238765,-2878.60430972,0.0003299,4]
[313132527,1706794238775,-3087.46829628,0.00033,3]
[313132529,1706794238784,-1048.69284346,0.00033084,2]
[313132530,1706794238793,-1000.0,0.00033151,120]
[313132531,1706794238802,-152.38258003,0.00033175,2]
[313132532,1706794238812,-2878.60430972,0.00033195,5]
[313132533,1706794238821,-1048.69284346,0.00033205,2]
[313132534,1706794238830,-500.0,0.00033242,2]
[313132535,1706794238839,-800.0,0.00033242,2]
[313132536,1706794238848,-800.0,0.00033242,2]
[313132537,1706794238857,-800.0,0.00033243,2]
[313132538,1706794238866,-800.0,0.00033243,2]
[313132539,1706794238874,-2878.60430972,0.00033316,5]
[313132540,1706794238883,-1048.69284346,0.00033326,2]
[313132541,1706794238892,-11104.7199788,0.0003339,5]
[313132548,1706794241076,-286.81,0.00029767,2]
[313132549,1706794241089,-6776.13183909,0.0003339,5]
[313132550,1706794241103,-2538.89763086,0.0003339,5]
[313132551,1706794241698,-1312.500005,0.0003339,5]
[313132552,1706794241966,-619.47061975,0.0003339,5]
[313132594,1706794243250,-215.0,0.00029767,2]
[313132597,1706794243261,-162.70314152,0.0003339,5]
[313132604,1706794243323,-4931.81698754,0.0003339,5]
[313132605,1706794243396,-15701.5145124,0.0003339,5]
[313132619,1706794246280,-155.0,0.0003,2]
[313132620,1706794246289,-1250.0,0.00030086,2]
[313132621,1706794246299,-318.628,0.00030086,2]
[313132622,1706794246310,-202.62691188,0.000325,2]
[313132623,1706794246322,-17302.93578914,0.0003339,5]
[313132624,1706794246331,-1000.0,0.000334,2]
[313132625,1706794246341,-1416.50092628,0.000334,2]
[313132626,1706794246399,-2167.25000001,0.000334,2]
[313132627,1706794251176,157.2176121,0.00022437,2]
[313132628,1706794262963,155.30019509,0.00022437,2]
[313132629,1706794263807,205.0,0.00022437,2]
[313132630,1706794271299,226.62102245,0.00022437,2]
[313132642,1706795220382,-525.34483202,0.00027368,2]
[313132643,1706795220403,-155.0,0.00027369,2]
[313132644,1706795220422,-155.0,0.0002737,2]
[313132645,1706795220442,-1000.0,0.000274,2]
[313132646,1706795220462,-168.89261506,0.00029993,2]
[313132647,1706795220482,-150.0,0.00030055,2]
[313132648,1706795220503,-302.0,0.00030093,2]
[313132649,1706795220523,-427.0,0.00030094,2]
[313132650,1706795220542,-371.055,0.00030094,2]
[313132651,1706795220563,-236.0,0.00030094,2]
[313132652,1706795220581,-1647.903,0.00030094,2]
[313132653,1706795220600,-998.0,0.00030094,2]
[313132654,1706795220619,-320.0,0.00030094,2]
[313132655,1706795220637,-744.471,0.00030094,2]
[313132656,1706795220656,-150.0,0.00030094,2]
[313132657,1706795274943,-155.3,0.00030148,2]
[313132658,1706795274963,-200.0,0.000312,2]
[313132659,1706795274983,-1465.60293662,0.0003137,2]
[313132660,1706795275003,-295.46,0.0003137,2]
[313132661,1706795275022,-255.9246001,0.00031728,4]
[313132662,1706795275042,-839.89893651,0.00031834,4]
[313132663,1706795275061,-250.0,0.00032024,2]
[313132664,1706795275080,-337.71,0.00032042,2]